bitfinex-derivatives/quotes_SOLF0:USTF0_20240902
["timestamp","ask_amount","ask_price","bid_price","bid_amount"]
[1725244251351,0.04912464,129.41,129.39,0.05161948]
[1725244252357,0.04912464,129.41,129.4,3.8645]
[1725244254959,0.04912464,129.41,129.39,3.91631948]
[1725244255152,23.77912464,129.41,129.39,0.05161948]
[1725244255561,3.8645,129.4,129.39,0.05161948]
[1725244259762,3.8645,129.4,129.29,3.55297634]
[1725244259763,23.73,129.4,129.29,3.55297634]
[1725244259968,23.73,129.35,129.29,1.4469]
[1725244260160,23.73,129.35,129.24,3.55297634]
[1725244260359,23.73,129.35,129.24,6.86774953]
[1725244260360,23.73,129.33,129.24,6.86774953]
[1725244260567,1.3602,129.34,129.24,2.9117]
[1725244260568,23.73,129.31,129.24,2.9117]
[1725244260775,0.05726192,129.29,129.24,2.9117]
[1725244261269,3.8689,129.26,129.24,2.9117]
[1725244261465,0.05214008,129.26,129.24,2.9117]
[1725244262266,0.05214008,129.26,129.24,1.4469]
[1725244262469,0.05214008,129.26,129.17,183.01596001]
[1725244262470,3.8692,129.25,129.21,1.3827]
[1725244262678,3.8692,129.25,129.16,93.88982727]
[1725244262679,0.05693931,129.24,129.18,1.4583]
[1725244262864,0.05693931,129.24,129.18,2.841]
[1725244263181,0.05693931,129.24,129.18,6.6602247]
[1725244263182,3.8697,129.23,129.18,6.6602247]
[1725244263378,3.8697,129.23,129.18,2.841]
[1725244263974,23.73,129.22,129.09,3.55297634]
[1725244264174,0.05690019,129.17,129.11,1.3827]
[1725244265080,0.05690019,129.17,129.12,7.64744315]
[1725244265268,0.05690019,129.17,129.11,1.3827]
[1725244265572,0.05690019,129.17,129.11,5.20617946]
[1725244265777,0.05690019,129.17,129.13,3.8726]
[1725244266267,0.05690019,129.17,129.11,5.20617946]
[1725244266675,0.05690019,129.17,129.12,23.73]
[1725244266873,0.05690019,129.17,129.14,3.8721]
[1725244267085,0.05690019,129.17,129.12,23.73]
[1725244267282,0.05690019,129.17,129.13,23.73]
[1725244267881,0.05690019,129.17,129.16,3.8717]
[1725244270382,0.05690019,129.17,129.11,1.3827]
[1725244271684,0.05690019,129.17,129.14,3.8721]
[1725244271988,0.05690019,129.17,129.11,1.3827]
[1725244272180,0.05690019,129.17,129.09,5.25608079]
[1725244272385,0.05720706,129.14,129.09,1.4344]
[1725244272584,0.05720706,129.14,129.09,5.37116149]
[1725244272785,0.05720706,129.14,129.11,3.873]
[1725244272981,0.05720706,129.14,129.09,5.37116149]
[1725244273482,0.05720706,129.14,129.1,31.1468]
[1725244273877,0.05720706,129.14,129.13,3.8726]
[1725244274290,1.3762,129.22,129.12,29.74]
[1725244274590,31.1162,129.22,129.01,88.85065305]
[1725244274790,29.74,129.17,129.06,29.74]
[1725244274983,29.74,129.13,129.02,1.3997]
[1725244275188,0.04924277,129.09,129.06,0.05563218]
[1725244275480,3.8741,129.08,129.06,0.05563218]
[1725244276276,3.8744,129.07,128.96,3.88218102]
[1725244276483,32.6654,129.09,128.97,2.58954757]
[1725244276682,32.6654,129.09,128.98,29.74]
[1725244276886,2.9254,129.09,128.98,29.74]
[1725244277185,29.74,129.11,128.97,1.3997]
[1725244277186,3.8735,129.11,129.05,3.8748]
[1725244277386,0.05072015,129.09,129.05,3.8748]
[1725244277683,0.05072015,129.09,129.03,3.90920711]
[1725244277881,0.05027291,129.07,129.0,29.74]
[1725244278083,1.4734,129.13,129.02,29.74]
[1725244278291,1.472,129.15,129.05,29.74]
[1725244278292,9.27577605,129.15,129.05,29.74]
[1725244278584,5.3441,129.15,129.05,33.60426925]
[1725244278792,5.3441,129.15,129.1,3.8734]
[1725244278991,0.05326101,129.14,129.11,0.05220434]
[1725244279891,3.92556101,129.14,129.11,0.05220434]
[1725244280688,0.05326101,129.14,129.12,3.8729]
[1725244282386,0.05326101,129.14,129.11,3.92540434]
[1725244282601,29.79326101,129.14,129.11,0.05220434]
[1725244283084,33.66576101,129.14,129.11,0.05220434]
[1725244283288,29.79326101,129.14,129.11,0.05220434]
[1725244283491,33.6129,129.12,129.11,0.05220434]
[1725244284582,29.74,129.12,129.11,0.05220434]
[1725244284780,0.05326101,129.14,129.11,0.05220434]
[1725244285384,29.74,129.13,129.11,0.05220434]
[1725244285796,3.92576101,129.14,129.11,3.92540434]
[1725244285990,0.05326101,129.14,129.11,3.92540434]
[1725244286184,0.05326101,129.14,129.11,0.05220434]
[1725244286385,0.05326101,129.14,129.12,3.8726]
[1725244286987,29.74,129.13,129.11,0.05220434]
[1725244287297,35.00585925,129.13,129.01,2.8448]
[1725244287590,29.74,129.09,129.01,2.8448]
[1725244288187,0.05116205,129.06,129.02,3.8756]
[1725244288389,0.05116205,129.06,129.01,2.8448]
[1725244289297,0.05116205,129.06,129.03,3.8754]
[1725244290986,0.05116205,129.06,128.95,29.74]
[1725244291189,0.05031689,129.02,128.96,1.18993906]
[1725244291391,0.05031689,129.02,129.01,3.8759]
[1725244292295,0.05031689,129.02,128.95,3.8990495]
[1725244292594,0.05031689,129.02,128.94,32.463]
[1725244292790,0.05742014,128.99,128.94,32.463]
[1725244292991,0.05742014,128.99,128.98,3.8771]
[1725244293191,33.6153,129.05,128.98,3.92406536]
[1725244293497,33.6153,129.05,129.01,3.8762]
[1725244293799,33.6151,129.05,128.98,3.85664289]
[1725244294006,1.458,129.11,128.98,29.74]
[1725244294300,0.05024947,129.06,129.03,0.05914157]
[1725244294489,0.05024947,129.06,129.03,0.05565137]
[1725244294696,3.8769,128.99,128.95,7.881514]
[1725244294888,33.61369225,129.01,128.9,6.33987634]
[1725244295091,33.61369225,129.01,128.9,2.7869]
[1725244295303,1.3514,129.0,128.95,3.8779]
[1725244295692,0.04999628,128.99,128.94,3.78099821]
[1725244295892,0.04999628,128.99,128.91,29.74]
[1725244296197,1.3514,129.0,128.91,29.74]
[1725244296198,0.05679426,128.96,128.91,3.80580689]
[1725244296400,0.05679426,128.96,128.9,2.7869]
[1725244296699,0.05679426,128.96,128.9,6.64968934]
[1725244297499,0.05679426,128.96,128.9,10.20266568]
[1725244297696,0.05679426,128.96,128.95,3.878]
[1725244298405,29.74,129.03,128.91,33.29297634]
[1725244298602,33.70039289,129.03,128.93,29.74]
[1725244299005,29.74,129.03,128.94,4.33021296]
[1725244299197,29.74,129.03,128.94,7.8831893]
[1725244299397,0.05218533,129.0,128.99,3.8768]
[1725244300709,31.0866,129.07,128.99,1.19014177]
[1725244301010,31.0866,129.07,128.98,3.55297634]
[1725244301308,35.03264926,129.07,129.02,3.8757]
[1725244301810,0.0587575,129.06,129.03,0.05028412]
[1725244302199,0.0587575,129.06,129.05,3.875]
[1725244303423,0.0587575,129.06,129.03,0.05028412]
[1725244303702,29.74,129.02,128.92,3.55297634]
[1725244303898,29.74,128.96,128.93,1.19080171]
[1725244304101,33.618,128.96,128.9,3.55297634]
[1725244304300,33.618,128.96,128.91,1.19091008]
[1725244304301,29.74,128.96,128.91,1.19091008]
[1725244304502,0.05432525,128.95,128.92,0.04956386]
[1725244305094,0.05432525,128.95,128.93,3.8784]
[1725244305295,0.05432525,128.95,128.92,0.04956386]
[1725244307307,0.05432525,128.95,128.93,3.8785]
[1725244307704,0.05432525,128.95,128.92,0.04956386]
[1725244309604,0.05432525,128.95,128.92,3.92846386]
[1725244309809,0.05432525,128.95,128.92,0.04956386]
[1725244310206,0.05432525,128.95,128.92,3.92846386]
[1725244310407,0.05432525,128.95,128.92,0.04956386]
[1725244311310,0.05432525,128.95,128.93,3.8784]
[1725244313910,0.05432525,128.95,128.94,3.8783]
[1725244316002,35.76,129.0,128.97,3.8774]
[1725244316515,1.4158,129.01,128.93,2.735]
[1725244316812,35.76,129.03,128.93,2.735]
[1725244317114,0.05762695,128.99,128.97,0.05564062]
[1725244317512,0.05762695,128.99,128.98,3.8771]
[1725244318411,0.05762695,128.99,128.97,3.93284062]
[1725244318718,0.05762695,128.99,128.97,0.05564062]
[1725244319812,0.05762695,128.99,128.97,3.93284062]
[1725244320506,0.05762695,128.99,128.98,3.8771]
[1725244320716,1.4455,129.04,128.97,0.05564062]
[1725244320917,35.76,129.03,128.97,0.05564062]
[1725244321713,0.05243794,129.01,128.97,0.05564062]
[1725244322110,0.05243794,129.01,129.0,3.8765]
[1725244322908,0.05243794,129.01,129.0,7.78791613]
[1725244323111,35.76,129.07,129.01,3.8759]
[1725244323310,35.76,129.07,129.0,3.91141613]
[1725244323516,35.76,129.07,128.95,35.76]
[1725244324402,35.76,129.07,129.03,3.8754]
[1725244324607,0.05571388,129.06,129.04,0.05855664]
[1725244325910,0.05571388,129.06,129.05,3.875]
[1725244327018,0.05571388,129.06,129.04,3.93375664]
[1725244327211,0.05571388,129.06,129.04,0.05855664]
[1725244327416,0.05571388,129.06,129.05,3.875]
[1725244327917,0.05571388,129.06,129.05,7.74710434]
[1725244329814,1.3544,129.12,129.05,3.87210434]
[1725244330116,31.1536,129.16,129.05,29.74]
[1725244330311,31.1536,129.16,129.05,33.69578363]
[1725244330312,35.02996579,129.16,129.05,33.69578363]
[1725244330515,35.02996579,129.16,129.05,3.95578363]
[1725244330516,29.74,129.12,129.05,3.95578363]
[1725244330720,29.79011106,129.1,129.07,0.05882059]
[1725244330917,33.66381106,129.1,129.07,0.05882059]
[1725244331112,0.05011106,129.1,129.07,0.05882059]
[1725244331412,0.05011106,129.1,129.08,3.8739]
[1725244332108,0.05011106,129.1,129.07,0.05882059]
[1725244332714,0.05011106,129.1,129.09,3.8738]
[1725244333213,29.79011106,129.1,129.07,0.05882059]
[1725244333703,1.4499,129.09,129.07,0.05882059]
[1725244334815,5.3239,129.09,129.07,0.05882059]
[1725244336419,1.4499,129.09,129.07,0.05882059]
[1725244337008,1.4499,129.09,129.08,3.8741]
[1725244337314,0.05011106,129.1,129.08,3.8741]
[1725244337725,0.05011106,129.1,129.07,3.93312059]
[1725244338019,0.05011106,129.1,129.07,0.05882059]
[1725244338416,0.05011106,129.1,129.08,3.8741]
[1725244338617,0.05011106,129.1,129.07,0.05882059]
[1725244338813,0.05011106,129.1,129.08,3.8739]
[1725244339214,0.05011106,129.1,129.07,0.05882059]
[1725244339616,0.05011106,129.1,129.08,3.8741]
[1725244340124,0.05011106,129.1,129.09,3.8738]
[1725244341217,0.05011106,129.1,129.07,0.05882059]
[1725244341413,29.79011106,129.1,129.07,0.05882059]
[1725244341818,3.8738,129.09,129.07,0.05882059]
[1725244342523,31.1163,129.08,128.97,29.74]
[1725244342724,36.38876799,129.08,128.98,1.4716]
[1725244342922,3.8753,129.05,128.98,1.4716]
[1725244343119,3.8753,129.05,128.98,5.30243769]
[1725244343316,0.0550141,129.03,129.0,0.05901844]
[1725244343517,0.0550141,129.03,129.01,3.8761]
[1725244344924,0.0550141,129.03,129.01,7.67935546]
[1725244345419,0.0550141,129.03,129.02,3.8759]
[1725244349628,1.3763,129.08,129.06,3.8746]
[1725244349838,1.3763,129.08,129.0,1.3345]
[1725244350124,1.3763,129.08,129.0,5.17048938]
[1725244350330,1.3763,129.08,129.0,1.3345]
[1725244350638,1.3763,129.08,129.05,3.8749]
[1725244350824,1.42581049,129.08,129.05,3.8749]
[1725244351127,1.42581049,129.08,129.03,0.05770455]
[1725244352030,5.30001049,129.08,129.03,0.05770455]
[1725244352331,1.42581049,129.08,129.03,0.05770455]
[1725244353335,1.42581049,129.08,129.05,3.875]
[1725244353727,1.42581049,129.08,129.03,0.05770455]
[1725244353927,0.04951049,129.08,129.03,0.05770455]
[1725244355630,0.04951049,129.08,129.07,3.8744]
[1725244356424,0.04951049,129.08,129.06,3.93418116]
[1725244358333,0.04951049,129.08,129.07,3.8744]
[1725244360024,0.04951049,129.08,129.07,7.77301614]
[1725244360631,0.04951049,129.08,129.07,3.8744]
[1725244360831,0.04951049,129.08,129.07,7.76255889]
[1725244361026,1.4605,129.14,129.06,29.74]
[1725244361338,19.69111108,129.3,129.01,3.55297634]
[1725244361339,3.90791147,129.18,129.08,29.74]
[1725244361526,3.8713,129.18,129.13,3.8724]
[1725244361730,7.82258967,129.18,129.13,3.8724]
[1725244362037,0.05637203,129.17,129.14,0.05920888]
[1725244362230,0.05789951,129.17,129.14,0.05920888]
[1725244363332,0.05789951,129.17,129.14,3.93150888]
[1725244364432,0.05789951,129.17,129.14,0.05920888]
[1725244364631,0.05789951,129.17,129.15,3.86467306]
[1725244365535,0.05789951,129.17,129.15,7.73647306]
[1725244366633,0.05789951,129.17,129.16,3.8717]
[1725244367136,3.92929951,129.17,129.16,3.81714352]
[1725244367535,3.92929951,129.17,129.14,0.05920888]
[1725244367741,3.92929951,129.17,129.14,3.93150888]
[1725244368142,0.05789951,129.17,129.14,3.93150888]
[1725244368533,0.05789951,129.17,129.15,3.8719]
[1725244370839,29.74,129.16,129.08,1.3472]
[1725244371138,1.3448,129.15,129.08,5.24903784]
[1725244371340,5.217,129.15,129.11,3.8729]
[1725244371844,0.05705094,129.14,129.12,0.05548464]
[1725244372542,0.05705094,129.14,129.12,3.92828464]
[1725244378342,0.05705094,129.14,129.13,3.8726]
[1725244381344,0.05705094,129.14,129.13,7.65258768]
[1725244383146,0.05705094,129.14,129.12,0.05548464]
[1725244383549,0.05705094,129.14,129.12,3.92838464]
[1725244384554,0.05705094,129.14,129.13,3.8726]
[1725244386149,0.05705094,129.14,129.12,3.92818464]
[1725244386458,0.05705094,129.14,129.12,7.73081865]
[1725244386644,0.05705094,129.14,129.12,3.92818464]
[1725244386846,23.86705094,129.14,129.01,30.65914202]
[1725244387047,23.81,129.14,129.03,23.81]
[1725244387449,3.8733,129.11,129.03,23.81]
[1725244387759,23.81,129.14,129.05,23.81]
[1725244388053,0.05654074,129.11,129.08,3.92952636]
[1725244388258,0.05654074,129.11,129.08,7.76816943]
[1725244389552,0.05654074,129.11,129.08,3.89426943]
[1725244390249,0.05654074,129.11,129.08,7.76826943]
[1725244390448,0.05654074,129.11,129.08,0.05562636]
[1725244391059,0.05654074,129.11,129.08,3.97933395]
[1725244391452,3.92994074,129.11,129.08,7.85343395]
[1725244393454,0.05654074,129.11,129.1,3.8735]
[1725244396455,0.05654074,129.11,129.08,3.97933395]
[1725244396860,0.05654074,129.11,129.1,3.8735]
[1725244399657,0.05654074,129.11,129.09,3.8737]
[1725244401759,0.05654074,129.11,129.08,7.85333395]
[1725244401965,9.56654074,129.11,129.08,0.05562636]
[1725244402254,9.51,129.1,129.08,0.05562636]
[1725244402461,16.19533525,129.1,129.03,3.8754]
[1725244402663,9.51,129.07,129.0,9.51]
[1725244402964,9.51,129.07,129.0,13.29764737]
[1725244403168,6.72522152,129.1,129.0,13.29764737]
[1725244403358,0.05961685,129.06,129.04,0.05316026]
[1725244403562,0.05961685,129.06,129.05,3.8749]
[1725244403763,0.05961685,129.06,129.04,0.05316026]
[1725244404068,0.05961685,129.06,129.04,4.01042112]
[1725244404262,0.05961685,129.06,129.04,0.05316026]
[1725244404963,0.05961685,129.06,129.04,7.81230017]
[1725244405165,0.05961685,129.06,129.04,0.05316026]
[1725244405966,0.05961685,129.06,129.05,3.89091357]
[1725244406164,0.05961685,129.06,129.04,0.05316026]
[1725244406360,0.05961685,129.06,129.05,3.875]
[1725244406560,0.05961685,129.06,129.05,7.68339195]
[1725244407965,5.3185,129.11,129.06,3.8745]
[1725244408263,9.19912661,129.11,129.03,23.79]
[1725244408462,5.32572661,129.11,129.03,27.61678282]
[1725244409062,0.05779019,129.08,129.06,0.05593598]
[1725244409465,0.05779019,129.08,129.06,3.93043598]
[1725244409965,0.05779019,129.08,129.07,3.8744]
[1725244410273,0.05779019,129.08,129.06,0.05593598]
[1725244410460,0.05779019,129.08,129.06,3.93043598]
[1725244410870,0.05779019,129.08,129.06,0.05593598]
[1725244411266,0.05779019,129.08,129.07,3.8744]
[1725244412366,0.05779019,129.08,129.06,7.86152009]
[1725244412564,0.05779019,129.08,129.06,3.93053598]
[1725244413572,0.05779019,129.08,129.06,7.84176446]
[1725244413757,0.05779019,129.08,129.06,3.96716446]
[1725244414464,0.05779019,129.08,129.06,7.84186446]
[1725244415263,0.05779019,129.08,129.07,3.8744]
[1725244428772,0.05779019,129.08,129.06,0.05593598]
[1725244429370,0.05779019,129.08,129.06,9.56593598]
[1725244429677,343.0,129.17,129.07,9.51]
[1725244429869,5.22536104,129.15,129.1,9.51]
[1725244430565,18.60756104,129.15,129.11,3.873]
[1725244430767,18.60756104,129.15,129.07,1.3692]
[1725244430768,9.56600933,129.14,129.12,0.05329636]
[1725244431673,0.05600933,129.14,129.12,0.05329636]
[1725244432377,0.05600933,129.14,129.12,3.90066882]
[1725244432673,0.05600933,129.14,129.13,3.8726]
[1725244433073,0.05600933,129.14,129.12,3.95991278]
[1725244433275,9.56600933,129.14,129.12,0.05329636]
[1725244433473,0.05600933,129.14,129.12,0.05329636]
[1725244433780,0.05600933,129.14,129.12,3.92609636]
[1725244435280,0.05600933,129.14,129.13,3.8726]
[1725244435466,0.05600933,129.14,129.12,0.05329636]
[1725244435873,0.05600933,129.14,129.12,3.92599636]
[1725244439273,0.05600933,129.14,129.13,3.8726]
[1725244443981,9.56600933,129.14,129.12,0.05329636]
[1725244444179,9.56600933,129.14,128.97,46.09140448]
[1725244444180,9.51,129.13,129.0,85.56701915]
[1725244444382,9.51,129.13,129.06,9.51]
[1725244444685,9.51,129.13,129.08,3.8741]
[1725244444686,13.3828,129.13,129.08,3.8741]
[1725244444883,9.51,129.13,129.08,3.8741]
[1725244445083,3.8729,129.12,129.08,3.8741]
[1725244445285,3.92682416,129.12,129.09,0.05463574]
[1725244445480,3.8733,129.11,129.09,0.05463574]
[1725244445983,1.52102416,129.12,129.09,0.05463574]
[1725244446382,5.39422416,129.12,129.09,0.05463574]
[1725244446984,1.52102416,129.12,129.09,3.92823574]
[1725244447294,1.52102416,129.12,129.09,0.05463574]
[1725244447481,5.39402416,129.12,129.09,0.05463574]
[1725244449780,5.39402416,129.12,129.09,3.92843574]
[1725244450991,1.52102416,129.12,129.1,3.8735]
[1725244451586,0.05392416,129.12,129.1,3.8735]
[1725244452390,3.92682416,129.12,129.09,3.92833574]
[1725244453194,3.92682416,129.12,129.09,0.05463574]
[1725244453693,3.8735,129.1,129.09,0.05463574]
[1725244453887,7.76910548,129.1,129.09,0.05463574]
[1725244454292,9.16050548,129.1,129.09,0.05463574]
[1725244458897,3.8743,129.08,129.05,3.8749]
[1725244459804,3.8739,129.09,129.06,3.8746]
[1725244459992,3.92308321,129.09,129.06,3.93337886]
[1725244460895,3.8741,129.08,129.06,3.93337886]
[1725244461400,0.04918321,129.09,129.06,0.05877886]
[1725244461605,1.45448321,129.09,129.06,0.05877886]
[1725244462397,3.8744,129.07,129.06,0.05877886]
[1725244463199,3.8755,129.04,128.99,1.4155]
[1725244463497,9.51,129.08,128.99,1.4155]
[1725244463498,9.51,129.08,129.01,9.51]
[1725244464294,3.93177026,129.06,129.03,3.92724211]
[1725244465399,3.875,129.05,129.03,0.05184211]
[1725244467804,3.93187026,129.06,129.03,0.05184211]
[1725244468906,0.05707026,129.06,129.03,3.92744211]
[1725244469105,0.05707026,129.06,129.03,0.05184211]
[1725244469713,0.05707026,129.06,129.04,3.8751]
[1725244471411,0.05707026,129.06,129.03,0.05184211]
[1725244471613,0.05707026,129.06,129.03,9.56184211]
[1725244471918,0.05707026,129.06,129.05,3.875]
[1725244480337,1.4381,129.15,129.09,3.8737]
[1725244480640,1.4381,129.15,129.05,10.9046]
[1725244480641,9.51,129.12,129.05,10.9046]
[1725244480842,13.3831,129.12,129.08,3.874]
[1725244481333,0.05381889,129.11,129.1,3.8735]
[1725244484236,9.56381889,129.11,129.09,0.0496225]
[1725244484431,9.56381889,129.11,128.94,3.55297634]
[1725244484641,9.51,129.06,128.97,9.51]
[1725244484940,3.8752,129.05,128.99,9.51]
[1725244485442,0.05590243,129.03,129.01,0.05952958]
[1725244485835,3.8759,129.02,129.01,0.05952958]
[1725244486148,0.05590243,129.03,129.01,0.05952958]
[1725244489335,3.93150243,129.03,129.01,0.05952958]
[1725244489844,9.51,129.02,128.9,20.41541275]
[1725244490043,9.51,128.99,128.91,2.93]
[1725244490243,9.51,128.99,128.92,9.51]
[1725244490937,9.51,128.96,128.94,0.05441809]
[1725244491137,9.5662425,128.96,128.94,0.05061856]
[1725244491544,3.878,128.95,128.94,0.05061856]
[1725244491743,9.51,128.95,128.82,31.07434179]
[1725244491939,9.51,128.92,128.86,1.4637]
[1725244492136,9.51,128.92,128.87,3.8804]
[1725244492341,1.3626,128.94,128.78,61.76443996]
[1725244492342,47.55,128.88,128.78,61.76443996]
[1725244492539,9.51,128.82,128.78,21.87911275]
[1725244492736,9.51,128.8,128.78,20.41541275]
[1725244493050,9.56535832,128.8,128.78,20.41541275]
[1725244493244,9.51,128.79,128.75,3.90362363]
[1725244493434,0.05016728,128.78,128.73,1.3906]
[1725244493640,0.05016728,128.78,128.74,3.90943952]
[1725244494337,0.05016728,128.78,128.72,1.4509]
[1725244494542,23.87,128.82,128.73,1.3906]
[1725244494738,27.69103803,128.84,128.74,23.87]
[1725244494945,23.87,128.84,128.75,1.3698]
[1725244495139,27.81006986,128.84,128.75,5.33933702]
[1725244495344,23.87,128.84,128.75,5.33933702]
[1725244495548,23.87,128.84,128.78,0.05552112]
[1725244495745,0.056891,128.81,128.78,3.93842112]
[1725244496246,23.87,128.86,128.78,0.05552112]
[1725244496546,23.87,128.86,128.8,3.8823]
[1725244497349,0.05565196,128.84,128.82,0.05772441]
[1725244497544,27.68811193,128.91,128.82,0.05851399]
[1725244497738,23.87,128.91,128.8,27.69704001]
[1725244497946,37.629873,128.91,128.84,3.881]
[1725244498446,29.84036403,128.89,128.86,0.05304156]
[1725244498646,3.94880446,128.88,128.86,0.05516975]
[1725244498841,5.34980446,128.88,128.86,0.05516975]
[1725244499257,1.401,128.88,128.86,0.05516975]
[1725244499549,5.29820892,128.88,128.86,0.05516975]
[1725244500348,9.17830892,128.88,128.86,0.05516975]
[1725244500743,1.401,128.88,128.86,0.05516975]
[1725244502850,0.05265651,128.89,128.86,0.05516975]
[1725244504249,0.05265651,128.89,128.87,3.8802]
[1725244504551,0.05265651,128.89,128.87,5.348]
[1725244504757,3.8784,128.94,128.87,1.4678]
[1725244505064,29.79,128.95,128.89,3.8797]
[1725244505552,3.8781,128.95,128.9,3.8793]
[1725244506056,0.05291919,128.94,128.91,0.0574541]
[1725244506453,0.05291919,128.94,128.91,3.9365541]
[1725244506845,0.05291919,128.94,128.91,0.0574541]
[1725244507559,0.05291919,128.94,128.91,3.9364541]
[1725244508256,0.05291919,128.94,128.93,3.8786]
[1725244508462,31.2114,129.01,128.9,29.79]
[1725244508652,3.8769,128.99,128.9,29.79]
[1725244508852,7.73829595,128.99,128.9,29.79]
[1725244509055,7.73829595,128.99,128.88,1.3615]
[1725244509056,33.65139595,128.99,128.88,1.3615]
[1725244509356,3.8785,128.94,128.92,0.05685199]
[1725244509555,29.79,128.95,128.87,1.4678]
[1725244509748,3.8795,128.91,128.87,1.4678]
[1725244509950,29.79,128.93,128.87,1.4678]
[1725244510459,3.8793,128.91,128.87,1.4678]
[1725244510659,0.053007,128.9,128.88,0.05299361]
[1725244511055,3.932607,128.9,128.88,0.05299361]
[1725244512846,0.053007,128.9,128.88,0.05299361]
[1725244514959,0.053007,128.9,128.88,3.93289361]
[1725244515155,0.053007,128.9,128.88,0.05299361]
[1725244515865,0.053007,128.9,128.89,3.8798]
[1725244516364,3.8786,128.94,128.88,0.05299361]
[1725244516555,5.216,128.95,128.88,0.05299361]
[1725244517059,3.8781,128.95,128.88,0.05299361]
[1725244517253,0.05396416,128.93,128.89,3.89341544]
[1725244517563,0.05396416,128.93,128.91,3.879]
[1725244518266,0.05396416,128.93,128.9,0.05598399]
[1725244519353,3.8791,128.92,128.9,0.05598399]
[1725244520455,3.93266416,128.93,128.9,0.05598399]
[1725244520853,0.05396416,128.93,128.9,0.05598399]
[1725244523555,0.05396416,128.93,128.9,3.93548399]
[1725244523956,0.05396416,128.93,128.9,0.05598399]
[1725244524152,0.05396416,128.93,128.91,3.879]
[1725244524453,0.05396416,128.93,128.9,0.05598399]
[1725244524658,0.05396416,128.93,128.9,3.93528399]
[1725244525362,0.05396416,128.93,128.9,0.05598399]
[1725244525864,1.3506,128.98,128.89,5.4039983]
[1725244525865,5.2279,128.98,128.94,3.8782]
[1725244526271,3.96697025,128.97,128.91,3.8791]
[1725244526563,29.8,128.97,128.91,3.8791]
[1725244526752,3.93693392,128.95,128.93,0.05079811]
[1725244527157,0.05873392,128.95,128.93,0.05079811]
[1725244527669,3.93693392,128.95,128.93,0.05079811]
[1725244529662,0.05873392,128.95,128.93,0.05079811]
[1725244530156,0.05873392,128.95,128.93,3.92929811]
[1725244530965,0.05873392,128.95,128.94,3.8783]
[1725244531663,31.1468,129.01,128.96,3.8775]
[1725244531863,31.1468,129.01,128.94,1.3419]
[1725244532370,35.0232,129.01,128.97,3.8772]
[1725244532868,0.05658165,129.0,128.98,0.05329974]
[1725244533860,0.05658165,129.0,128.98,3.93039974]
[1725244534061,0.05658165,129.0,128.98,0.05329974]
[1725244534865,29.8,128.99,128.83,29.8]
[1725244535058,29.8,128.95,128.84,2.8212]
[1725244535256,3.97056139,128.94,128.84,6.63901767]
[1725244535457,3.8787,128.93,128.88,3.8798]
[1725244535680,29.8,128.95,128.84,6.63901767]
[1725244535861,0.05483875,128.92,128.89,0.05027005]
[1725244536060,0.05483875,128.92,128.89,3.93007005]
[1725244537270,0.05483875,128.92,128.9,3.8794]
[1725244537668,0.05483875,128.92,128.89,0.05027005]
[1725244537872,29.85483875,128.92,128.89,0.05027005]
[1725244539263,33.73403875,128.92,128.89,0.05027005]
[1725244540476,3.8792,128.91,128.89,0.05027005]
[1725244540663,29.85483875,128.92,128.89,0.05027005]
[1725244541559,29.8,128.9,128.78,3.55297634]
[1725244541773,29.8,128.87,128.8,2.8665]
[1725244541958,29.8,128.87,128.82,3.8819]
[1725244542471,0.05351007,128.86,128.83,0.05385637]
[1725244543270,3.8811,128.85,128.83,0.05385637]
[1725244543463,29.8,128.85,128.83,0.05385637]
[1725244543764,31.1547,128.85,128.83,0.05385637]
[1725244543966,3.8813,128.84,128.83,0.05385637]
[1725244544568,3.8824,128.81,128.77,1.4416]
[1725244544966,3.82003119,128.82,128.77,1.4416]
[1725244545275,1.3547,128.85,128.73,2.7956]
[1725244545276,29.8,128.81,128.73,1.4463]
[1725244545472,29.8,128.81,128.74,3.90928426]
[1725244545473,33.59558361,128.81,128.74,3.90928426]
[1725244545674,0.05626973,128.79,128.76,0.05127849]
[1725244546367,1.3547,128.85,128.76,0.05127849]
[1725244546567,31.1547,128.85,128.74,31.1529]
[1725244546764,29.8,128.82,128.74,1.3529]
[1725244546961,29.8,128.8,128.7,29.8]
[1725244547164,33.61907171,128.8,128.7,3.90445746]